bitfinex-derivatives/quotes_BTCF0:USTF0_20210105
["timestamp","ask_amount","ask_price","bid_price","bid_amount"]
[1609810343019,0.09824,32576.0,32564.0,0.13632608]
[1609810344320,3.9927,32574.0,32564.0,0.13632608]
[1609810344720,0.13632608,32565.0,32564.0,0.13632608]
[1609810345820,0.09824,32576.0,32564.0,0.13632608]
[1609810346020,0.2839,32582.0,32564.0,0.13632608]
[1609810346722,0.13632608,32567.0,32564.0,0.13632608]
[1609810348222,0.15137,32576.0,32564.0,0.13632608]
[1609810348721,0.13632608,32571.0,32570.0,0.13632608]
[1609810351228,0.15137,32576.0,32561.0,0.099]
[1609810351428,0.15137,32576.0,32554.0,0.15195]
[1609810351628,0.15137,32576.0,32551.0,4.9334]
[1609810352228,0.11382,32576.0,32551.0,4.9334]
[1609810352829,0.11382,32576.0,32566.0,0.13632608]
[1609810353229,0.11382,32576.0,32555.0,0.14806]
[1609810354832,0.13632608,32565.0,32564.0,0.13632608]
[1609810356432,0.11382,32576.0,32555.0,0.14806]
[1609810356933,0.11382,32576.0,32565.0,0.13632608]
[1609810357233,0.2839,32582.0,32565.0,0.13632608]
[1609810358936,0.13632608,32566.0,32565.0,0.13632608]
[1609810359736,0.14382,32574.0,32565.0,0.13632608]
[1609810360139,0.14382,32574.0,32555.0,0.14806]
[1609810360338,0.14382,32574.0,32551.0,4.9334]
[1609810360941,0.14382,32574.0,32573.0,0.13632608]
[1609810361141,0.13632608,32577.0,32573.0,0.13632608]
[1609810362645,0.13632608,32577.0,32561.0,0.15968]
[1609810362843,0.2839,32582.0,32561.0,0.15968]
[1609810363444,0.2839,32582.0,32567.0,0.13632608]
[1609810365348,0.13632608,32568.0,32567.0,0.13632608]
[1609810367149,0.2839,32582.0,32567.0,0.13632608]
[1609810367349,0.13632608,32569.0,32567.0,0.13632608]
[1609810371255,0.13632608,32569.0,32561.0,0.15968]
[1609810371453,0.13632608,32562.0,32553.0,0.13632608]
[1609810372253,0.13632608,32562.0,32536.0,2.04214684]
[1609810373453,0.5785,32564.0,32540.0,0.13632608]
[1609810375556,0.5785,32564.0,32547.0,0.13632608]
[1609810376156,0.5785,32564.0,32539.0,0.15592]
[1609810376857,0.5785,32564.0,32531.0,3.4433]
[1609810377258,0.5785,32564.0,32530.0,2.04659325]
[1609810377458,5.0105,32559.0,32530.0,2.04659325]
[1609810377660,0.10491,32559.0,32530.0,2.04659325]
[1609810378060,4.8669,32552.0,32530.0,2.04659325]
[1609810378260,5.01804,32552.0,32530.0,2.04659325]
[1609810378461,0.15114,32552.0,32530.0,2.04659325]
[1609810378860,4.0373,32534.0,32530.0,1.81379325]
[1609810379062,0.13313,32539.0,32530.0,1.81379325]
[1609810379261,4.59,32531.0,32530.0,1.81379325]
[1609810379462,4.59,32531.0,32518.0,0.13254]
[1609810379862,0.13632608,32519.0,32518.0,0.13254]
[1609810380062,0.68752608,32519.0,32518.0,0.13254]
[1609810380264,0.68752608,32519.0,32514.0,2.22549688]
[1609810381870,0.68752608,32519.0,32518.0,0.13632608]
[1609810382069,0.13632608,32519.0,32518.0,0.13632608]
[1609810383570,0.86602608,32519.0,32518.0,0.13632608]
[1609810383870,0.86602608,32519.0,32508.0,0.09762]
[1609810385972,0.15332,32524.0,32515.0,0.13632608]
[1609810386173,3.68212,32524.0,32515.0,0.13632608]
[1609810387077,3.68212,32524.0,32508.0,0.09762]
[1609810387377,0.15332,32524.0,32490.0,2.25091104]
[1609810387678,4.5439,32521.0,32490.0,2.25091104]
[1609810387882,0.13632608,32508.0,32507.0,0.13632608]
[1609810388279,4.5439,32521.0,32490.0,2.25091104]
[1609810388484,0.15332,32524.0,32490.0,2.40397104]
[1609810388682,3.9802,32523.0,32490.0,2.40397104]
[1609810389281,3.9802,32523.0,32495.0,2.07694527]
[1609810389980,0.15332,32524.0,32495.0,2.07694527]
[1609810390182,4.7536,32517.0,32490.0,0.15306]
[1609810390382,0.10581,32517.0,32490.0,0.15306]
[1609810390582,4.7208,32515.0,32490.0,0.15306]
[1609810391182,0.2713,32514.0,32490.0,0.15306]
[1609810391584,0.2713,32514.0,32478.0,2.09213549]
[1609810392081,0.2713,32514.0,32489.0,0.13632608]
[1609810392284,0.5683,32514.0,32489.0,0.13632608]
[1609810393982,0.13632608,32490.0,32489.0,0.13632608]
[1609810401888,0.15014,32499.0,32489.0,0.13632608]
[1609810402088,0.13632608,32503.0,32498.0,0.13632608]
[1609810402889,0.5683,32514.0,32498.0,0.13632608]
[1609810403490,0.297,32514.0,32498.0,0.13632608]
[1609810403689,0.2709,32530.0,32498.0,0.13632608]
[1609810404089,0.2709,32530.0,32520.0,0.13632608]
[1609810404690,0.2709,32530.0,32512.0,3.5971]
[1609810405289,0.13313,32539.0,32512.0,3.5971]
[1609810405490,0.271,32542.0,32512.0,3.5971]
[1609810406190,0.271,32542.0,32533.0,0.13632608]
[1609810408195,0.271,32542.0,32541.0,0.13632608]
[1609810408796,3.49836037,32570.0,32541.0,0.13632608]
[1609810408996,0.2734,32569.0,32541.0,0.13632608]
[1609810409196,0.40146,32569.0,32541.0,0.13632608]
[1609810409397,0.12806,32569.0,32541.0,0.13632608]
[1609810409598,0.12806,32569.0,32543.0,5.036]
[1609810409799,0.12806,32569.0,32543.0,5.16992]
[1609810410200,0.12806,32569.0,32567.0,0.13632608]
[1609810411501,0.2926,32577.0,32567.0,0.13632608]
[1609810412101,0.2926,32577.0,32558.0,4.8947]
[1609810412300,0.43139,32577.0,32557.0,0.13247]
[1609810412702,5.54579,32577.0,32557.0,0.13247]
[1609810413102,0.13632608,32558.0,32557.0,0.26879608]
[1609810414103,0.1022,32570.0,32557.0,4.90949608]
[1609810414502,0.13879,32577.0,32557.0,4.90949608]
[1609810414703,0.294,32591.0,32557.0,0.13247]
[1609810414903,0.01847413,32593.0,32575.0,4.9358]
[1609810415102,0.01847413,32593.0,32575.0,5.04336]
[1609810415504,0.01846787,32604.0,32575.0,5.04336]
[1609810415703,0.46051967,32595.0,32575.0,5.04336]
[1609810416303,0.46051967,32595.0,32575.0,0.10756]
[1609810416702,0.12938,32604.0,32575.0,0.10756]
[1609810416902,0.12938,32604.0,32584.0,3.9823]
[1609810417104,0.12938,32604.0,32584.0,4.08683]
[1609810417703,0.12938,32604.0,32603.0,0.13632608]
[1609810418403,0.12938,32604.0,32584.0,4.08683]
[1609810419806,0.12938,32604.0,32603.0,0.13632608]
[1609810420404,0.12938,32604.0,32603.0,5.02902608]
[1609810421004,0.13632608,32616.0,32603.0,5.02902608]
[1609810421207,0.75280822,32624.0,32603.0,5.02902608]
[1609810421406,0.75280822,32624.0,32603.0,4.8927]
[1609810422004,0.2927,32624.0,32613.0,0.13632608]
[1609810422507,0.2927,32624.0,32612.0,4.4427]
[1609810422709,0.39617,32624.0,32612.0,4.4427]
[1609810423911,0.39617,32624.0,32623.0,0.13632608]
[1609810425412,0.39617,32624.0,32612.0,4.4427]
[1609810426012,0.39617,32624.0,32617.0,0.13632608]
[1609810427913,0.10347,32624.0,32617.0,0.13632608]
[1609810428113,0.13632608,32625.0,32623.0,0.13632608]
[1609810429816,0.0906,32624.0,32612.0,4.54604]
[1609810430015,0.0906,32624.0,32616.0,0.13632608]
[1609810430414,0.13899,32628.0,32616.0,0.13632608]
[1609810432015,0.13899,32628.0,32627.0,0.13632608]
[1609810432216,0.13899,32628.0,32622.0,5.1129]
[1609810432815,0.27,32633.0,32622.0,5.1129]
[1609810433718,0.0918,32632.0,32622.0,5.1129]
[1609810434018,0.0918,32632.0,32627.0,0.13632608]
[1609810435518,0.27,32633.0,32627.0,0.13632608]
[1609810436019,0.13632608,32628.0,32627.0,0.13632608]
[1609810437825,0.13632608,32628.0,32620.0,0.11467]
[1609810438024,0.13632608,32621.0,32615.0,0.13632608]
[1609810438426,0.0923,32627.0,32612.0,0.10334]
[1609810438624,0.0923,32627.0,32609.0,4.933]
[1609810438825,0.27,32633.0,32609.0,4.933]
[1609810439828,0.0932,32632.0,32609.0,4.933]
[1609810440326,0.27,32633.0,32609.0,4.933]
[1609810440928,0.27,32633.0,32600.0,0.13857]
[1609810441128,0.27,32633.0,32593.0,4.8313]
[1609810441330,0.277,32632.0,32605.0,0.13632608]
[1609810443433,0.13632608,32606.0,32605.0,0.13632608]
[1609810443632,0.15639,32613.0,32590.0,4.4456]
[1609810443832,0.15639,32613.0,32591.0,0.09931]
[1609810445437,0.15639,32613.0,32594.0,0.13632608]
[1609810447441,0.13632608,32595.0,32594.0,0.13632608]
[1609810447839,0.16094,32597.0,32582.0,0.14955]
[1609810449441,0.29726608,32597.0,32596.0,0.13632608]
[1609810451442,0.13632608,32601.0,32596.0,0.13632608]
[1609810451645,0.15639,32613.0,32596.0,0.13632608]
[1609810451843,4.5326,32636.0,32596.0,0.13632608]
[1609810452043,0.2795,32634.0,32596.0,0.28462608]
[1609810453446,0.2795,32634.0,32617.0,0.13632608]
[1609810453846,0.2795,32634.0,32616.0,0.13246]
[1609810454047,4.0972,32617.0,32616.0,0.13246]
[1609810454449,4.0972,32617.0,32596.0,0.1483]
[1609810454648,4.0972,32617.0,32589.0,0.11218]
[1609810455448,0.15527,32621.0,32600.0,0.13632608]
[1609810456250,0.15527,32621.0,32589.0,0.11218]
[1609810456551,0.15527,32621.0,32588.0,3.8144]
[1609810457452,0.15527,32621.0,32596.0,0.13632608]
[1609810459557,0.15527,32621.0,32588.0,3.8144]
[1609810460159,0.15527,32621.0,32596.0,0.13632608]
[1609810461759,0.15527,32621.0,32593.0,4.7142]
[1609810462360,0.15527,32621.0,32602.0,0.13632608]
[1609810463261,0.15527,32621.0,32593.0,4.7142]
[1609810464861,0.15527,32621.0,32609.0,0.13632608]
[1609810466864,0.13632608,32610.0,32609.0,0.13632608]
[1609810468967,0.15527,32621.0,32609.0,0.13632608]
[1609810470670,0.15527,32621.0,32609.0,5.09482608]
[1609810470871,0.29159608,32621.0,32618.0,0.13632608]
[1609810471070,0.15527,32621.0,32618.0,0.13632608]
[1609810471271,0.02804575,32622.0,32618.0,0.13632608]
[1609810471473,0.02804575,32622.0,32618.0,0.73772608]
[1609810471673,0.00940958,32626.0,32618.0,0.6014]
[1609810472776,0.00943129,32627.0,32618.0,0.6014]
[1609810472976,0.00943129,32627.0,32623.0,0.13632608]
[1609810473580,0.00943151,32631.0,32623.0,0.13632608]
[1609810474977,0.00943151,32631.0,32629.0,0.13632608]
[1609810476081,0.01867808,32632.0,32629.0,0.13632608]
[1609810476082,0.81737853,32632.0,32629.0,0.13632608]
[1609810476682,0.01874966,32630.0,32629.0,0.13632608]
[1609810477383,0.02821508,32632.0,32629.0,0.13632608]
[1609810477581,0.02821508,32632.0,32629.0,0.29665608]
[1609810478984,0.02821508,32632.0,32629.0,0.16033]
[1609810479484,0.02821508,32632.0,32631.0,0.13632608]
[1609810481087,0.44931438,32636.0,32631.0,0.13632608]
[1609810481488,0.66811222,32636.0,32635.0,0.13632608]
[1609810481888,0.66811222,32636.0,32635.0,5.11842608]
[1609810482289,0.92786149,32642.0,32635.0,5.11842608]
[1609810482290,0.00945986,32642.0,32635.0,5.11842608]
[1609810482488,0.00945986,32642.0,32635.0,0.13632608]
[1609810482889,0.00945986,32642.0,32637.0,4.3845]
[1609810483090,0.00945986,32642.0,32637.0,4.49774]
[1609810483291,0.02818193,32647.0,32637.0,4.49774]
[1609810483490,0.02818193,32647.0,32646.0,0.13632608]
[1609810483691,0.6676522,32649.0,32646.0,0.13632608]
[1609810483692,0.00945573,32649.0,32646.0,0.13632608]
[1609810486494,0.66764894,32652.0,32646.0,0.13632608]
[1609810487497,0.66764894,32652.0,32651.0,0.13632608]
[1609810488898,0.02809311,32653.0,32651.0,0.13632608]
[1609810489898,0.00942598,32653.0,32651.0,5.15692608]
[1609810490897,0.00942598,32653.0,32651.0,0.13632608]
[1609810492002,0.0280246,32662.0,32651.0,0.13632608]
[1609810492602,0.66392494,32665.0,32651.0,0.13632608]
[1609810493001,0.66392494,32665.0,32651.0,0.26922608]
[1609810493202,0.14571118,32664.0,32651.0,0.26922608]
[1609810493502,0.14571118,32664.0,32663.0,0.13632608]
[1609810493704,0.13632608,32664.0,32663.0,0.13632608]
[1609810498509,0.00938048,32667.0,32652.0,0.5824]
[1609810499511,0.00938048,32667.0,32666.0,0.13632608]
[1609810501014,0.00935991,32671.0,32666.0,0.13632608]
[1609810501514,0.00935991,32671.0,32670.0,0.13632608]
[1609810502715,0.00935991,32671.0,32662.0,3.4578]
[1609810502915,0.02786368,32673.0,32662.0,3.4578]
[1609810503515,0.02786368,32673.0,32672.0,0.13632608]
[1609810503914,0.02786368,32673.0,32651.0,0.1329]
[1609810504117,4.6033,32652.0,32644.0,0.12287]
[1609810504316,0.11855,32657.0,32626.0,0.1771]
[1609810504515,4.3697,32638.0,32611.0,5.1194]
[1609810504918,0.11759,32647.0,32606.0,0.1771]
[1609810505116,3.7211,32628.0,32608.0,0.46109]
[1609810505316,3.7211,32628.0,32608.0,0.10509]
[1609810505516,0.13632608,32626.0,32621.0,0.13632608]
[1609810506719,0.15355,32628.0,32621.0,0.13632608]
[1609810507119,0.15355,32628.0,32622.0,0.5109]
[1609810507319,0.1023,32635.0,32622.0,0.5109]
[1609810507520,0.1023,32635.0,32634.0,0.13632608]
[1609810509925,0.11759,32647.0,32634.0,0.13632608]
[1609810510123,0.13632608,32651.0,32634.0,0.13632608]
[1609810510926,0.2745,32656.0,32634.0,0.13632608]
[1609810511124,0.2745,32656.0,32638.0,4.7291]
[1609810511524,0.2745,32656.0,32655.0,0.13632608]
[1609810516031,0.2745,32656.0,32640.0,0.15716]
[1609810516233,0.11855,32657.0,32640.0,0.15716]
[1609810516432,0.00935792,32668.0,32640.0,0.15716]
[1609810516633,0.00935713,32667.0,32638.0,4.8871]
[1609810516832,0.15879713,32667.0,32638.0,4.8871]
[1609810517134,0.14944,32667.0,32638.0,4.8871]
[1609810517534,0.14944,32667.0,32666.0,0.13632608]
[1609810519635,0.28576608,32667.0,32666.0,0.13632608]
[1609810520035,0.14944,32667.0,32654.0,4.6952]
[1609810521637,0.14944,32667.0,32666.0,0.13632608]
[1609810521837,0.00939004,32669.0,32666.0,0.13632608]
[1609810522037,0.32278592,32670.0,32666.0,0.13632608]
[1609810523639,0.13632608,32667.0,32666.0,0.13632608]
[1609810524039,0.27250608,32667.0,32666.0,0.13632608]
[1609810525140,0.13618,32667.0,32666.0,0.13632608]
[1609810529042,0.3042033,32670.0,32666.0,0.13632608]
[1609810529243,0.12196,32667.0,32666.0,0.13632608]
[1609810529643,0.25828608,32667.0,32666.0,0.13632608]
[1609810531047,0.25828608,32667.0,32651.0,0.15569]
[1609810531245,0.25828608,32667.0,32640.0,0.10202]
[1609810531446,4.0656,32657.0,32629.0,4.632]
[1609810531647,4.0656,32657.0,32641.0,0.13632608]
[1609810531846,0.13381,32658.0,32641.0,0.13632608]
[1609810532046,5.0653,32652.0,32637.0,0.12263]
[1609810532246,0.13381,32658.0,32626.0,0.10029]
[1609810532448,4.7005,32649.0,32626.0,0.10029]
[1609810532747,4.82520579,32649.0,32626.0,0.10029]
[1609810533147,0.02815413,32647.0,32626.0,0.10029]
[1609810533648,0.02815413,32647.0,32637.0,0.13632608]
[1609810534447,0.02815413,32647.0,32632.0,3.6314]
[1609810534448,0.02815403,32645.0,32632.0,3.6314]
[1609810534747,0.11526,32649.0,32632.0,3.6314]
[1609810535447,0.00946402,32650.0,32632.0,3.6314]
[1609810535648,0.0094633,32653.0,32649.0,0.13632608]
[1609810536048,0.81662723,32659.0,32649.0,0.13632608]
[1609810536049,0.14327218,32658.0,32649.0,0.13632608]
[1609810536650,0.13381,32658.0,32649.0,0.13632608]
[1609810537148,0.02820169,32656.0,32649.0,0.13632608]
[1609810537648,0.02820169,32656.0,32655.0,0.13632608]
[1609810537847,0.02820169,32656.0,32643.0,4.07575]
[1609810538048,0.00947775,32654.0,32643.0,0.09725]
[1609810538248,3.97297775,32654.0,32633.0,0.1771]
[1609810539049,0.02825302,32649.0,32633.0,0.1771]
[1609810539250,0.14238302,32649.0,32633.0,0.1771]
[1609810539648,0.14238302,32649.0,32626.0,0.10029]
[1609810539848,0.14238302,32649.0,32641.0,0.13632608]
[1609810540249,0.02825072,32644.0,32641.0,0.13632608]
[1609810540752,0.00947891,32645.0,32641.0,0.13632608]
[1609810541755,0.13632608,32642.0,32641.0,0.13632608]
[1609810542152,0.12457,32642.0,32623.0,0.11169]
[1609810543752,0.6823379,32642.0,32641.0,0.13632608]
[1609810544363,0.12457,32642.0,32641.0,0.13632608]
[1609810545154,0.13404831,32642.0,32641.0,0.13632608]
[1609810545756,0.27037439,32642.0,32641.0,0.13632608]
[1609810546359,0.90297439,32642.0,32641.0,0.13632608]
[1609810546559,1.45120962,32642.0,32641.0,0.13632608]
[1609810547159,0.81860962,32642.0,32623.0,0.11169]
[1609810547360,4.0614,32635.0,32612.0,0.1771]
[1609810547560,4.21247,32635.0,32612.0,0.1771]
[1609810547760,4.21247,32635.0,32622.0,0.13632608]
[1609810548159,4.21247,32635.0,32608.0,0.13883]
[1609810548360,3.9273,32625.0,32608.0,0.13883]
[1609810548559,4.05624,32625.0,32608.0,0.13883]
[1609810549761,4.05624,32625.0,32609.0,0.13632608]
[1609810549963,0.12894,32625.0,32609.0,0.13632608]
[1609810551864,0.12894,32625.0,32623.0,0.13632608]
[1609810553576,0.00944348,32631.0,32623.0,0.13632608]
[1609810553766,0.00944348,32631.0,32630.0,0.13632608]
[1609810554164,0.02813825,32631.0,32630.0,0.13632608]
[1609810554765,0.02813342,32648.0,32630.0,0.13632608]
[1609810555365,0.02813342,32648.0,32639.0,4.7319]
[1609810555764,0.02813342,32648.0,32633.0,0.10611]
[1609810555964,0.02813342,32648.0,32647.0,4.778]
[1609810556166,0.02812069,32649.0,32647.0,4.92556]
[1609810556364,0.02812069,32649.0,32648.0,0.13632608]
[1609810556564,0.02812069,32649.0,32648.0,3.93082608]
[1609810556967,0.02811833,32667.0,32648.0,3.93082608]
[1609810557564,0.02811833,32667.0,32648.0,3.7945]
[1609810557766,0.00943444,32667.0,32648.0,3.7945]
[1609810558169,0.00943275,32671.0,32648.0,3.7945]
[1609810558369,0.00943275,32671.0,32670.0,0.13632608]
[1609810560669,0.02810829,32674.0,32670.0,0.13632608]
[1609810561070,0.00942341,32675.0,32670.0,0.13632608]
[1609810561469,0.00942341,32675.0,32671.0,3.8442]
[1609810562271,0.00942368,32676.0,32671.0,3.8442]
[1609810562472,0.14574976,32676.0,32675.0,0.13632608]
[1609810562772,0.16440808,32676.0,32675.0,0.13632608]
[1609810563373,0.16440808,32676.0,32659.0,4.7919]
[1609810563574,0.2744344,32676.0,32659.0,4.7919]
[1609810564474,0.13632608,32660.0,32659.0,4.6632]
[1609810564674,0.13632608,32660.0,32647.0,0.14756]
[1609810564876,0.13632608,32660.0,32624.0,0.11793]
[1609810565076,0.13632608,32660.0,32634.0,4.5447]
[1609810565476,0.16441288,32660.0,32634.0,4.5447]
[1609810566376,0.16441288,32660.0,32659.0,0.13632608]
[1609810566578,0.16441288,32660.0,32634.0,4.5447]
[1609810566778,0.13632608,32660.0,32634.0,4.5447]
[1609810568080,0.13632608,32660.0,32624.0,0.11793]
[1609810568477,0.13632608,32660.0,32622.0,4.5093]
[1609810568478,0.01866173,32661.0,32638.0,0.13632608]
[1609810569878,0.01866173,32661.0,32625.0,0.12432]
[1609810570479,0.01867494,32648.0,32635.0,0.13632608]
[1609810570680,0.01867494,32648.0,32625.0,0.12432]
[1609810570681,0.14025494,32648.0,32625.0,0.12432]
[1609810571478,0.14025494,32648.0,32622.0,4.5093]
[1609810571680,0.01867614,32647.0,32622.0,4.5093]
[1609810572381,0.01867614,32647.0,32635.0,0.13632608]
[1609810572784,0.01867614,32647.0,32634.0,3.886]
[1609810573584,0.01867161,32644.0,32634.0,3.886]
[1609810574286,0.12158,32648.0,32634.0,3.886]
[1609810574484,0.12158,32648.0,32647.0,0.13632608]
[1609810575789,0.1377,32655.0,32647.0,0.13632608]
[1609810576388,0.13632608,32648.0,32647.0,0.13632608]
[1609810580095,0.01866248,32654.0,32653.0,5.053]
[1609810580494,0.01866248,32654.0,32653.0,5.18932608]
[1609810581197,0.55439978,32654.0,32653.0,0.13632608]
[1609810581797,0.12887111,32676.0,32653.0,0.13632608]
[1609810581995,0.12887111,32676.0,32665.0,5.0281]
[1609810582396,0.12887111,32676.0,32675.0,0.13632608]
[1609810582596,0.12887111,32676.0,32675.0,0.85122608]
[1609810582796,0.00942111,32676.0,32675.0,0.85122608]
[1609810582997,0.55436741,32678.0,32675.0,0.7149]
[1609810582998,0.00941949,32678.0,32675.0,0.7149]
[1609810583600,1.10614642,32684.0,32675.0,0.7149]
[1609810583601,0.2933,32684.0,32675.0,0.7149]
[1609810584503,0.2933,32684.0,32683.0,0.13632608]
[1609810585002,0.2933,32684.0,32675.0,0.14467]
[1609810585602,0.2933,32684.0,32667.0,0.11396]
[1609810585802,0.2933,32684.0,32664.0,4.5313]
[1609810586003,0.2933,32684.0,32660.0,0.10914]
[1609810586203,0.2933,32684.0,32668.0,3.8808]
[1609810586401,0.2933,32684.0,32660.0,0.10914]
[1609810586402,0.2933,32684.0,32683.0,0.13632608]
[1609810587502,0.2933,32684.0,32678.0,4.122]
[1609810588406,0.2933,32684.0,32683.0,0.13632608]
[1609810588809,0.2933,32684.0,32678.0,4.122]
[1609810589007,0.2933,32684.0,32660.0,0.10914]
[1609810589206,0.2933,32684.0,32654.0,5.0494]
[1609810590509,0.2933,32684.0,32683.0,0.13632608]
[1609810590708,0.2933,32684.0,32654.0,5.0494]
[1609810590908,0.15988,32688.0,32654.0,5.0494]
[1609810591108,0.0241749,32688.0,32654.0,5.0494]
[1609810591310,0.66282386,32689.0,32654.0,5.0494]
[1609810592610,0.66282386,32689.0,32681.0,0.13632608]
[1609810594513,0.66282386,32689.0,32688.0,0.13632608]
[1609810594715,0.6627475,32690.0,32688.0,0.13632608]
[1609810596116,0.66210774,32696.0,32688.0,0.13632608]
[1609810596614,0.13632608,32689.0,32688.0,0.13632608]
[1609810596814,0.23640608,32689.0,32688.0,0.13632608]
[1609810598219,0.10008,32689.0,32672.0,4.9118]
[1609810599420,0.10008,32689.0,32688.0,0.13632608]
[1609810601020,0.10008,32689.0,32672.0,4.9118]
[1609810601723,0.66121908,32699.0,32672.0,4.9118]
[1609810602020,0.66121908,32699.0,32686.0,0.13632608]
[1609810602421,0.66121237,32700.0,32686.0,0.13632608]
[1609810604020,0.13632608,32687.0,32686.0,0.13632608]
[1609810604220,0.25869608,32687.0,32686.0,0.13632608]
[1609810605723,0.12237,32687.0,32686.0,0.13632608]
[1609810605922,0.12237,32687.0,32686.0,4.77642608]
[1609810606122,0.10645,32695.0,32686.0,4.77642608]
[1609810607324,0.2964,32702.0,32686.0,4.77642608]
[1609810607524,0.2964,32702.0,32686.0,0.13632608]
[1609810608127,0.2964,32702.0,32696.0,0.13632608]
[1609810608327,0.95471008,32711.0,32678.0,0.10907]
[1609810609127,0.95471008,32711.0,32670.0,3.672]
[1609810609328,1.06875008,32711.0,32670.0,3.672]
[1609810609527,0.40864,32711.0,32670.0,3.672]
[1609810610127,0.40864,32711.0,32696.0,0.13632608]
[1609810610326,0.40864,32711.0,32667.0,0.09782]
[1609810610526,0.40864,32711.0,32660.0,0.13731]
[1609810610729,0.40864,32711.0,32672.0,4.8425]
[1609810610928,0.40864,32711.0,32672.0,5.00253]
[1609810611129,1.10912616,32710.0,32672.0,5.00253]
[1609810611630,1.0708904,32711.0,32672.0,5.00253]
[1609810612128,1.0708904,32711.0,32700.0,0.13632608]
[1609810612129,0.40864,32711.0,32700.0,0.13632608]
[1609810614233,0.13632608,32701.0,32700.0,0.13632608]
[1609810614433,0.23399608,32701.0,32700.0,0.13632608]
[1609810616537,0.23399608,32701.0,32680.0,3.8256]
[1609810618139,0.09767,32701.0,32683.0,0.13632608]
[1609810619742,0.09767,32701.0,32680.0,3.8256]
[1609810619743,0.66143916,32710.0,32680.0,3.8256]
[1609810619942,0.66143916,32710.0,32664.0,0.11571]
[1609810620151,4.5247,32697.0,32664.0,0.11571]
[1609810620342,4.67425,32697.0,32664.0,0.11571]
[1609810620546,0.2835,32696.0,32664.0,0.11571]
[1609810620742,0.13632608,32665.0,32664.0,0.25203608]
[1609810620942,0.13632608,32665.0,32664.0,0.13632608]
[1609810621143,0.13632608,32665.0,32651.0,0.10969]
[1609810621545,0.13632608,32665.0,32633.0,0.356]
[1609810622746,0.13632608,32665.0,32664.0,0.13632608]
[1609810625047,0.13632608,32665.0,32645.0,0.1189]
[1609810626849,0.14049,32668.0,32656.0,0.13632608]
[1609810627048,0.2928,32674.0,32656.0,0.13632608]
[1609810627248,0.2928,32674.0,32645.0,0.1189]
[1609810627548,0.2928,32674.0,32638.0,0.12326]
[1609810627749,4.0954,32666.0,32638.0,0.12326]
[1609810627949,4.21771,32666.0,32638.0,0.12326]
[1609810628750,4.21771,32666.0,32651.0,0.13632608]
[1609810630453,4.21771,32666.0,32631.0,0.16092]
[1609810630654,0.12231,32666.0,32631.0,0.16092]
[1609810630853,4.5743,32651.0,32639.0,0.13632608]
[1609810631055,4.70062,32651.0,32639.0,0.13632608]
[1609810632856,0.13632608,32640.0,32639.0,0.13632608]
[1609810634062,0.13632608,32640.0,32631.0,0.16092]
[1609810634263,0.13632608,32640.0,32612.0,0.1771]
[1609810634864,0.14034,32644.0,32630.0,0.13632608]
[1609810635065,0.6782,32642.0,32630.0,0.13632608]
[1609810636565,0.14034,32644.0,32630.0,0.13632608]
[1609810636766,0.14034,32644.0,32622.0,4.0675]
[1609810639267,0.14034,32644.0,32636.0,0.13632608]
[1609810639468,0.2712,32650.0,32636.0,0.13632608]
[1609810639667,1.71762,32659.0,32622.0,4.0675]
[1609810640869,0.66375004,32663.0,32620.0,0.1173]
[1609810641270,3.5713,32662.0,32620.0,0.1173]
[1609810641471,0.66375004,32663.0,32636.0,0.13632608]
[1609810642269,0.66375004,32663.0,32624.0,3.8094]
[1609810643369,0.66375004,32663.0,32631.0,0.13632608]
[1609810643870,4.5573,32650.0,32620.0,0.1173]
[1609810644072,4.6612,32650.0,32612.0,5.1572]
[1609810645472,4.6612,32650.0,32625.0,0.13632608]
[1609810647373,4.6612,32650.0,32632.0,0.13632608]
[1609810648273,0.1039,32650.0,32632.0,0.13632608]
[1609810648974,0.66264403,32658.0,32632.0,0.13632608]
[1609810649476,0.66264403,32658.0,32640.0,0.13632608]
[1609810650075,4.0168,32663.0,32640.0,0.13632608]
[1609810650076,4.67858601,32663.0,32640.0,0.13632608]
[1609810650576,0.45958326,32661.0,32640.0,0.13632608]
[1609810651076,4.67858601,32663.0,32640.0,0.13632608]
[1609810651476,0.66178601,32663.0,32649.0,0.13632608]
[1609810653280,0.78401966,32666.0,32649.0,0.13632608]
[1609810653478,0.13632608,32650.0,32649.0,0.13632608]
[1609810655980,0.13632608,32650.0,32632.0,5.16902]
[1609810657484,0.12132,32651.0,32642.0,0.13632608]
[1609810658886,4.3938,32660.0,32642.0,0.13632608]
[1609810659387,0.0905,32659.0,32642.0,0.13632608]
[1609810659588,0.13632608,32643.0,32642.0,0.13632608]
[1609810659787,0.28165608,32643.0,32642.0,0.13632608]
[1609810660090,0.28165608,32643.0,32619.0,0.14401]
[1609810660289,0.28165608,32643.0,32623.0,3.8193]
[1609810661592,0.14533,32643.0,32636.0,0.13632608]
[1609810661891,0.66923,32643.0,32636.0,0.13632608]
[1609810662191,0.66923,32643.0,32623.0,3.8193]
[1609810663494,0.66923,32643.0,32630.0,0.13632608]
[1609810663793,0.14533,32643.0,32630.0,0.13632608]
[1609810663993,4.7282,32641.0,32630.0,0.13632608]
[1609810665495,0.13632608,32631.0,32630.0,0.13632608]
[1609810666698,0.13632608,32631.0,32612.0,4.7255]
[1609810666898,0.13632608,32631.0,32612.0,0.1771]
[1609810667099,0.13632608,32631.0,30819.0,0.19922455]
[1609810667100,0.13632608,32631.0,32600.0,4.6773]
[1609810667299,0.13632608,32631.0,32595.0,2.38048256]
[1609810667499,4.1939,32629.0,32623.0,0.13632608]
[1609810668302,4.1939,32629.0,32595.0,0.356]
[1609810669501,4.1939,32629.0,32618.0,0.13632608]
[1609810669702,0.13734,32634.0,32618.0,0.13632608]
[1609810670902,5.0341,32636.0,32618.0,0.13632608]
[1609810671602,5.0341,32636.0,32624.0,0.13632608]
[1609810673502,0.13632608,32625.0,32624.0,0.13632608]
[1609810673704,0.13632608,32625.0,32613.0,0.15074]
[1609810673902,3.8739,32624.0,32613.0,0.15074]
[1609810674702,0.13632608,32625.0,32613.0,0.15074]
[1609810675202,0.13632608,32625.0,32604.0,3.5374]
[1609810675602,0.15193,32631.0,32617.0,0.13632608]
[1609810676707,0.676,32629.0,32617.0,0.13632608]
[1609810677506,0.13632608,32618.0,32617.0,0.13632608]